Workbook

Sheet Master Sheet
A1: Office Name | C1: Govt. Sr. Sec. School Gordhanpura, Atru Baran | K1: TAN No. | L1: JDHG09699E | N1: HRA | P1: 9% | Q1: DDO NAME | U1: Rajendra Kumar Chittora | Z1: DDO FATHERS NAME | AE1: Bhanwar Lal | AI1: DDO PAN NUMBER | AL1: ABCPC2588K
A2: S.N. | B2: Employee Name | C2: Designation | D2: PAN No. | E2: GPF/GPF 2004 | F2: Bank A/c No. | G2: Mobile No. | H2: Surender Payment | J2: Bonus | K2: Allowances | Q2: Deductions
H3: Yes/No | I3: Month | J3: Yes/No | K3: Basic Pay March 2024 | L3: Arrear if Any - प्राप्त व कटौती जो एरियर से हुई | Q3: S.I. मासिक | R3: वार्षिक राशि भरें | Z3: HRA Rebate | AC3: GPF/GPF 2004 | AO3: INCOME TAX | BA3: LIC | BM3: मकान किराए की रशीद के लिए
L4: Basic | M4: D.A. | N4: HRA | O4: GPF Ded. | P4: ITax | R4: G.I.S | S4: HITKARINIDHI | T4: House Loan Interest | U4: Tution Fees | V4: LIC-जो पेमेंट से नहीं काटी जाती | W4: PLI | X4: सुकन्या | Y4: धारा 80DD | AC4: 2024-03-01 | AD4: 2024-04-01 | AE4: 2024-05-01 | AF4: 2024-06-01 | AG4: 2024-07-01 | AH4: 2024-08-01 | AI4: 2024-09-01 | AJ4: 2024-10-01 | AK4: 2024-11-01 | AL4: 2024-12-01 | AM4: 2025-01-01 | AN4: 2025-02-01 | AO4: 2024-03-01 | AP4: 2024-04-01 | AQ4: 2024-05-01 | AR4: 2024-06-01 | AS4: 2024-07-01 | AT4: 2024-08-01 | AU4: 2024-09-01 | AV4: 2024-10-01 | AW4: 2024-11-01 | AX4: 2024-12-01 | AY4: 2025-01-01 | AZ4: 2025-02-01 | BA4: 2024-03-01 | BB4: 2024-04-01 | BC4: 2024-05-01 | BD4: 2024-06-01 | BE4: 2024-07-01 | BF4: 2024-08-01 | BG4: 2024-09-01 | BH4: 2024-10-01 | BI4: 2024-11-01 | BJ4: 2024-12-01 | BK4: 2025-01-01 | BL4: 2025-02-01 | BM4: मकान मालिक का नाम | BN4: पता
A5: 1 | B5: 2 | C5: 3 | D5: 4 | E5: 5 | F5: 6 | G5: 7 | H5: 8 | I5: 9 | J5: 10 | K5: 11 | L5: 12 | M5: 13 | N5: 14 | O5: 15 | P5: 16 | Q5: 17 | R5: 18 | S5: 19 | T5: 20 | U5: 21 | V5: 22 | W5: 23 | X5: 24 | Y5: 25 | Z5: 26 | AC5: 27 | AD5: 28 | AE5: 29 | AF5: 30 | AG5: 31 | AH5: 32 | AI5: 33 | AJ5: 34 | AK5: 35 | AL5: 36 | AM5: 37 | AN5: 38 | AO5: 39 | AP5: 40 | AQ5: 41 | AR5: 42 | AS5: 43 | AT5: 44 | AU5: 45 | AV5: 46 | AW5: 47 | AX5: 48 | AY5: 49 | AZ5: 50 | BA5: 51 | BB5: 52 | BC5: 53 | BD5: 54 | BE5: 55 | BF5: 56 | BG5: 57 | BH5: 58 | BI5: 59 | BJ5: 60 | BK5: 61 | BL5: 62
A6: 1 | B6: Parmanand Meghwal | C6: Senior Teacher | D6: XXXXXXXX | E6: GPF 2004 | F6: 61146986773 | G6: 9784379510 | H6: Yes | I6: 9 | J6: Yes | K6: 37800 | L6: 0 | M6: 0 | N6: 0 | O6: 0 | P6: 0 | Q6: 5000 | R6: 700 | S6: 250 | T6: 0 | U6: 30000 | V6: 0 | W6: 0 | X6: 0 | Y6: 0 | Z6: 52740 | AA6: =MROUND(ROUND(1.03*K6,0),100) -> 38900 | AB6: =K6*4*9%+AA6*8*9%+N6 -> 41616 | AC6: 2850 | AD6: =AC6 -> 2850 | AE6: =AD6 -> 2850 | AF6: 2850 | AG6: 2850 | AH6: 2850 | AI6: 2850 | AJ6: 2850 | AK6: 2850 | AL6: 2850 | AM6: 2850 | AN6: 2850 | AP6: =AO6 -> 0 | AQ6: =AP6 -> 0 | AR6: 0 | AS6: 0 | AT6: 0 | AU6: 0 | AV6: 0 | AW6: 0 | AX6: 0 | AY6: 0 | AZ6: 0 | BA6: 1200 | BB6: =BA6 -> 1200 | BC6: =BB6 -> 1200 | BD6: 1200 | BE6: 1200 | BF6: 1200 | BG6: 1200 | BH6: 1200 | BI6: 1200 | BJ6: 1200 | BK6: 1200 | BL6: 1200 | BM6: Vikas Sharma | BN6: Village Kawai Salpura, The atru Dist. Baran | BO6: Yes | BP6: Yes
A7: 2 | B7: Rajendra Kumar Chittora | C7: Principal | D7: XXXXXXXX | E7: GPF | F7: 61198238909 | G7: 9784135222 | H7: No | I7: 8 | J7: No | K7: 90400 | L7: 0 | M7: 0 | N7: 0 | O7: 0 | P7: 0 | Q7: 4000 | R7: 700 | S7: 500 | T7: 200000 | U7: 0 | V7: 0 | W7: 1200 | X7: 14000 | Y7: 0 | Z7: 94212 | AA7: =MROUND(ROUND(1.03*K7,0),100) -> 93100 | AB7: =K7*4*9%+AA7*8*9%+N7 -> 99576 | AC7: 8000 | AD7: =AC7 -> 8000 | AE7: =AD7 -> 8000 | AF7: =AE7 -> 8000 | AG7: =AF7 -> 8000 | AH7: =AG7 -> 8000 | AI7: =AH7 -> 8000 | AJ7: =AI7 -> 8000 | AK7: =AJ7 -> 8000 | AL7: =AK7 -> 8000 | AM7: =AL7 -> 8000 | AN7: =AM7 -> 8000 | AO7: 5000 | AP7: =AO7 -> 5000 | AQ7: 5000 | AR7: 5000 | AS7: 5000 | AT7: 5000 | AU7: 5000 | AV7: 5000 | AW7: 5000 | AX7: 5000 | AY7: 5000 | AZ7: 5000 | BA7: 2400 | BB7: =BA7 -> 2400 | BC7: 2400 | BD7: 2400 | BE7: 2400 | BF7: 2400 | BG7: 2400 | BH7: 2400 | BI7: 2400 | BJ7: 2400 | BK7: 2400 | BL7: 2400 | BM7: Harishankar Sharma | BN7: Village Kawai Salpura, The atru Dist. Baran | BO7: No | BP7: No
A8: 3 | B8: Kailash Chandra Nagar | C8: Senior Teacher | D8: XXXXXXXX | E8: GPF 2004 | F8: 61024509630 | G8: 9413635185 | H8: Yes | I8: 4 | J8: Yes | K8: 51400 | L8: 0 | M8: 0 | N8: 0 | O8: 0 | P8: 0 | Q8: 3000 | R8: 700 | S8: 250 | T8: 0 | U8: 0 | V8: 0 | W8: 0 | X8: 0 | Y8: 0 | Z8: 56592 | AA8: 52900 | AB8: 56592 | AC8: 2850 | AD8: 2850 | AE8: 2850 | AF8: 2850 | AG8: 2850 | AH8: 2850 | AI8: 2850 | AJ8: 2850 | AK8: 2850 | AL8: 2850 | AM8: 2850 | AN8: 2850 | AO8: 5000 | AP8: =AO8 -> 5000 | AQ8: 5000 | AR8: 5000 | AS8: 5000 | AT8: 5000 | AU8: 5000 | AV8: 5000 | AW8: 5000 | AX8: 5000 | AY8: 5000 | AZ8: 5000 | BA8: 672 | BB8: =BA8 -> 672 | BC8: 672 | BD8: 672 | BE8: 672 | BF8: 672 | BG8: 672 | BH8: 672 | BI8: 672 | BJ8: 672 | BK8: 672 | BL8: 672 | BM8: Ankit Galav | BN8: Village Kawai Salpura, The atru Dist. Baran
A9: 4 | AA9: 0 | AB9: 0 | AD9: 0 | AE9: 0 | AF9: 0 | AG9: 0 | AH9: 0 | AI9: 0 | AJ9: 0 | AK9: 0 | AL9: 0 | AM9: 0 | AN9: 0 | AP9: =AO9 -> 0 | AQ9: 0 | AR9: 0 | AS9: 0 | AT9: 0 | AU9: 0 | AV9: 0 | AW9: 0 | AX9: 0 | AY9: 0 | AZ9: 0 | BB9: =BA9 -> 0 | BC9: 0 | BD9: 0 | BE9: 0 | BF9: 0 | BG9: 0 | BH9: 0 | BI9: 0 | BJ9: 0 | BK9: 0 | BL9: 0 | BO9: 4
A10: 5 | AA10: 0 | AB10: 0 | AD10: 0 | AE10: 0 | AF10: 0 | AG10: 0 | AH10: 0 | AI10: 0 | AJ10: 0 | AK10: 0 | AL10: 0 | AM10: 0 | AN10: 0 | AP10: =AO10 -> 0 | AQ10: 0 | AR10: 0 | AS10: 0 | AT10: 0 | AU10: 0 | AV10: 0 | AW10: 0 | AX10: 0 | AY10: 0 | AZ10: 0 | BB10: =BA10 -> 0 | BC10: 0 | BD10: 0 | BE10: 0 | BF10: 0 | BG10: 0 | BH10: 0 | BI10: 0 | BJ10: 0 | BK10: 0 | BL10: 0 | BO10: 5
A11: 6 | AA11: 0 | AB11: 0 | AD11: 0 | AE11: 0 | AF11: 0 | AG11: 0 | AH11: 0 | AI11: 0 | AJ11: 0 | AK11: 0 | AL11: 0 | AM11: 0 | AN11: 0 | AP11: =AO11 -> 0 | AQ11: 0 | AR11: 0 | AS11: 0 | AT11: 0 | AU11: 0 | AV11: 0 | AW11: 0 | AX11: 0 | AY11: 0 | AZ11: 0 | BB11: =BA11 -> 0 | BC11: 0 | BD11: 0 | BE11: 0 | BF11: 0 | BG11: 0 | BH11: 0 | BI11: 0 | BJ11: 0 | BK11: 0 | BL11: 0 | BO11: 6
A12: 7 | AA12: 0 | AB12: 0 | AD12: 0 | AE12: 0 | AF12: 0 | AG12: 0 | AH12: 0 | AI12: 0 | AJ12: 0 | AK12: 0 | AL12: 0 | AM12: 0 | AN12: 0 | AP12: =AO12 -> 0 | AQ12: 0 | AR12: 0 | AS12: 0 | AT12: 0 | AU12: 0 | AV12: 0 | AW12: 0 | AX12: 0 | AY12: 0 | AZ12: 0 | BB12: =BA12 -> 0 | BC12: 0 | BD12: 0 | BE12: 0 | BF12: 0 | BG12: 0 | BH12: 0 | BI12: 0 | BJ12: 0 | BK12: 0 | BL12: 0 | BO12: 7 | BP12: GPF
A13: 8 | AA13: 0 | AB13: 0 | AD13: 0 | AE13: 0 | AF13: 0 | AG13: 0 | AH13: 0 | AI13: 0 | AJ13: 0 | AK13: 0 | AL13: 0 | AM13: 0 | AN13: 0 | AP13: =AO13 -> 0 | AQ13: 0 | AR13: 0 | AS13: 0 | AT13: 0 | AU13: 0 | AV13: 0 | AW13: 0 | AX13: 0 | AY13: 0 | AZ13: 0 | BB13: =BA13 -> 0 | BC13: 0 | BD13: 0 | BE13: 0 | BF13: 0 | BG13: 0 | BH13: 0 | BI13: 0 | BJ13: 0 | BK13: 0 | BL13: 0 | BO13: 8 | BP13: GPF 2004
A14: 9 | AA14: 0 | AB14: 0 | AD14: 0 | AE14: 0 | AF14: 0 | AG14: 0 | AH14: 0 | AI14: 0 | AJ14: 0 | AK14: 0 | AL14: 0 | AM14: 0 | AN14: 0 | AP14: =AO14 -> 0 | AQ14: 0 | AR14: 0 | AS14: 0 | AT14: 0 | AU14: 0 | AV14: 0 | AW14: 0 | AX14: 0 | AY14: 0 | AZ14: 0 | BB14: =BA14 -> 0 | BC14: 0 | BD14: 0 | BE14: 0 | BF14: 0 | BG14: 0 | BH14: 0 | BI14: 0 | BJ14: 0 | BK14: 0 | BL14: 0 | BO14: 9
A15: 10 | AA15: 0 | AB15: 0 | AD15: 0 | AE15: 0 | AF15: 0 | AG15: 0 | AH15: 0 | AI15: 0 | AJ15: 0 | AK15: 0 | AL15: 0 | AM15: 0 | AN15: 0 | AP15: =AO15 -> 0 | AQ15: 0 | AR15: 0 | AS15: 0 | AT15: 0 | AU15: 0 | AV15: 0 | AW15: 0 | AX15: 0 | AY15: 0 | AZ15: 0 | BB15: =BA15 -> 0 | BC15: 0 | BD15: 0 | BE15: 0 | BF15: 0 | BG15: 0 | BH15: 0 | BI15: 0 | BJ15: 0 | BK15: 0 | BL15: 0 | BO15: 10
A16: 11 | AA16: 0 | AB16: 0 | AD16: 0 | AE16: 0 | AF16: 0 | AG16: 0 | AH16: 0 | AI16: 0 | AJ16: 0 | AK16: 0 | AL16: 0 | AM16: 0 | AN16: 0 | AP16: =AO16 -> 0 | AQ16: 0 | AR16: 0 | AS16: 0 | AT16: 0 | AU16: 0 | AV16: 0 | AW16: 0 | AX16: 0 | AY16: 0 | AZ16: 0 | BB16: =BA16 -> 0 | BC16: 0 | BD16: 0 | BE16: 0 | BF16: 0 | BG16: 0 | BH16: 0 | BI16: 0 | BJ16: 0 | BK16: 0 | BL16: 0 | BO16: 11
A17: 12 | AA17: 0 | AB17: 0 | AD17: 0 | AE17: 0 | AF17: 0 | AG17: 0 | AH17: 0 | AI17: 0 | AJ17: 0 | AK17: 0 | AL17: 0 | AM17: 0 | AN17: 0 | AP17: =AO17 -> 0 | AQ17: 0 | AR17: 0 | AS17: 0 | AT17: 0 | AU17: 0 | AV17: 0 | AW17: 0 | AX17: 0 | AY17: 0 | AZ17: 0 | BB17: =BA17 -> 0 | BC17: 0 | BD17: 0 | BE17: 0 | BF17: 0 | BG17: 0 | BH17: 0 | BI17: 0 | BJ17: 0 | BK17: 0 | BL17: 0 | BO17: 12
A18: 13 | AA18: 0 | AB18: 0 | AD18: 0 | AE18: 0 | AF18: 0 | AG18: 0 | AH18: 0 | AI18: 0 | AJ18: 0 | AK18: 0 | AL18: 0 | AM18: 0 | AN18: 0 | AP18: =AO18 -> 0 | AQ18: 0 | AR18: 0 | AS18: 0 | AT18: 0 | AU18: 0 | AV18: 0 | AW18: 0 | AX18: 0 | AY18: 0 | AZ18: 0 | BB18: =BA18 -> 0 | BC18: 0 | BD18: 0 | BE18: 0 | BF18: 0 | BG18: 0 | BH18: 0 | BI18: 0 | BJ18: 0 | BK18: 0 | BL18: 0 | BO18: 1
A19: 14 | AA19: 0 | AB19: 0 | AD19: 0 | AE19: 0 | AF19: 0 | AG19: 0 | AH19: 0 | AI19: 0 | AJ19: 0 | AK19: 0 | AL19: 0 | AM19: 0 | AN19: 0 | AP19: =AO19 -> 0 | AQ19: 0 | AR19: 0 | AS19: 0 | AT19: 0 | AU19: 0 | AV19: 0 | AW19: 0 | AX19: 0 | AY19: 0 | AZ19: 0 | BB19: =BA19 -> 0 | BC19: 0 | BD19: 0 | BE19: 0 | BF19: 0 | BG19: 0 | BH19: 0 | BI19: 0 | BJ19: 0 | BK19: 0 | BL19: 0 | BO19: 2
A20: 15 | AA20: 0 | AB20: 0 | AD20: 0 | AE20: 0 | AF20: 0 | AG20: 0 | AH20: 0 | AI20: 0 | AJ20: 0 | AK20: 0 | AL20: 0 | AM20: 0 | AN20: 0 | AP20: =AO20 -> 0 | AQ20: 0 | AR20: 0 | AS20: 0 | AT20: 0 | AU20: 0 | AV20: 0 | AW20: 0 | AX20: 0 | AY20: 0 | AZ20: 0 | BB20: =BA20 -> 0 | BC20: 0 | BD20: 0 | BE20: 0 | BF20: 0 | BG20: 0 | BH20: 0 | BI20: 0 | BJ20: 0 | BK20: 0 | BL20: 0 | BO20: 3
A21: 16 | AA21: 0 | AB21: 0 | AD21: 0 | AE21: 0 | AF21: 0 | AG21: 0 | AH21: 0 | AI21: 0 | AJ21: 0 | AK21: 0 | AL21: 0 | AM21: 0 | AN21: 0 | AP21: =AO21 -> 0 | AQ21: 0 | AR21: 0 | AS21: 0 | AT21: 0 | AU21: 0 | AV21: 0 | AW21: 0 | AX21: 0 | AY21: 0 | AZ21: 0 | BB21: =BA21 -> 0 | BC21: 0 | BD21: 0 | BE21: 0 | BF21: 0 | BG21: 0 | BH21: 0 | BI21: 0 | BJ21: 0 | BK21: 0 | BL21: 0
A22: 17 | AA22: 0 | AB22: 0 | AD22: 0 | AE22: 0 | AF22: 0 | AG22: 0 | AH22: 0 | AI22: 0 | AJ22: 0 | AK22: 0 | AL22: 0 | AM22: 0 | AN22: 0 | AP22: =AO22 -> 0 | AQ22: 0 | AR22: 0 | AS22: 0 | AT22: 0 | AU22: 0 | AV22: 0 | AW22: 0 | AX22: 0 | AY22: 0 | AZ22: 0 | BB22: =BA22 -> 0 | BC22: 0 | BD22: 0 | BE22: 0 | BF22: 0 | BG22: 0 | BH22: 0 | BI22: 0 | BJ22: 0 | BK22: 0 | BL22: 0
A23: 18 | AA23: 0 | AB23: 0 | AD23: 0 | AE23: 0 | AF23: 0 | AG23: 0 | AH23: 0 | AI23: 0 | AJ23: 0 | AK23: 0 | AL23: 0 | AM23: 0 | AN23: 0 | AP23: =AO23 -> 0 | AQ23: 0 | AR23: 0 | AS23: 0 | AT23: 0 | AU23: 0 | AV23: 0 | AW23: 0 | AX23: 0 | AY23: 0 | AZ23: 0 | BB23: =BA23 -> 0 | BC23: 0 | BD23: 0 | BE23: 0 | BF23: 0 | BG23: 0 | BH23: 0 | BI23: 0 | BJ23: 0 | BK23: 0 | BL23: 0
A24: 19 | AA24: 0 | AB24: 0 | AD24: 0 | AE24: 0 | AF24: 0 | AG24: 0 | AH24: 0 | AI24: 0 | AJ24: 0 | AK24: 0 | AL24: 0 | AM24: 0 | AN24: 0 | AP24: =AO24 -> 0 | AQ24: 0 | AR24: 0 | AS24: 0 | AT24: 0 | AU24: 0 | AV24: 0 | AW24: 0 | AX24: 0 | AY24: 0 | AZ24: 0 | BB24: =BA24 -> 0 | BC24: 0 | BD24: 0 | BE24: 0 | BF24: 0 | BG24: 0 | BH24: 0 | BI24: 0 | BJ24: 0 | BK24: 0 | BL24: 0
A25: 20 | AA25: 0 | AB25: 0 | AD25: 0 | AE25: 0 | AF25: 0 | AG25: 0 | AH25: 0 | AI25: 0 | AJ25: 0 | AK25: 0 | AL25: 0 | AM25: 0 | AN25: 0 | AP25: =AO25 -> 0 | AQ25: 0 | AR25: 0 | AS25: 0 | AT25: 0 | AU25: 0 | AV25: 0 | AW25: 0 | AX25: 0 | AY25: 0 | AZ25: 0 | BB25: =BA25 -> 0 | BC25: 0 | BD25: 0 | BE25: 0 | BF25: 0 | BG25: 0 | BH25: 0 | BI25: 0 | BJ25: 0 | BK25: 0 | BL25: 0
A26: 21 | AA26: 0 | AB26: 0 | AD26: 0 | AE26: 0 | AF26: 0 | AG26: 0 | AH26: 0 | AI26: 0 | AJ26: 0 | AK26: 0 | AL26: 0 | AM26: 0 | AN26: 0 | AP26: =AO26 -> 0 | AQ26: 0 | AR26: 0 | AS26: 0 | AT26: 0 | AU26: 0 | AV26: 0 | AW26: 0 | AX26: 0 | AY26: 0 | AZ26: 0 | BB26: =BA26 -> 0 | BC26: 0 | BD26: 0 | BE26: 0 | BF26: 0 | BG26: 0 | BH26: 0 | BI26: 0 | BJ26: 0 | BK26: 0 | BL26: 0
A27: 22 | AA27: 0 | AB27: 0 | AD27: 0 | AE27: 0 | AF27: 0 | AG27: 0 | AH27: 0 | AI27: 0 | AJ27: 0 | AK27: 0 | AL27: 0 | AM27: 0 | AN27: 0 | AP27: =AO27 -> 0 | AQ27: 0 | AR27: 0 | AS27: 0 | AT27: 0 | AU27: 0 | AV27: 0 | AW27: 0 | AX27: 0 | AY27: 0 | AZ27: 0 | BB27: =BA27 -> 0 | BC27: 0 | BD27: 0 | BE27: 0 | BF27: 0 | BG27: 0 | BH27: 0 | BI27: 0 | BJ27: 0 | BK27: 0 | BL27: 0
A28: 23 | AA28: 0 | AB28: 0 | AD28: 0 | AE28: 0 | AF28: 0 | AG28: 0 | AH28: 0 | AI28: 0 | AJ28: 0 | AK28: 0 | AL28: 0 | AM28: 0 | AN28: 0 | AP28: =AO28 -> 0 | AQ28: 0 | AR28: 0 | AS28: 0 | AT28: 0 | AU28: 0 | AV28: 0 | AW28: 0 | AX28: 0 | AY28: 0 | AZ28: 0 | BB28: =BA28 -> 0 | BC28: 0 | BD28: 0 | BE28: 0 | BF28: 0 | BG28: 0 | BH28: 0 | BI28: 0 | BJ28: 0 | BK28: 0 | BL28: 0
A29: 24 | AA29: 0 | AB29: 0 | AD29: 0 | AE29: 0 | AF29: 0 | AG29: 0 | AH29: 0 | AI29: 0 | AJ29: 0 | AK29: 0 | AL29: 0 | AM29: 0 | AN29: 0 | AP29: =AO29 -> 0 | AQ29: 0 | AR29: 0 | AS29: 0 | AT29: 0 | AU29: 0 | AV29: 0 | AW29: 0 | AX29: 0 | AY29: 0 | AZ29: 0 | BB29: =BA29 -> 0 | BC29: 0 | BD29: 0 | BE29: 0 | BF29: 0 | BG29: 0 | BH29: 0 | BI29: 0 | BJ29: 0 | BK29: 0 | BL29: 0
A30: 25 | AA30: 0 | AB30: 0 | AD30: 0 | AE30: 0 | AF30: 0 | AG30: 0 | AH30: 0 | AI30: 0 | AJ30: 0 | AK30: 0 | AL30: 0 | AM30: 0 | AN30: 0 | AP30: =AO30 -> 0 | AQ30: 0 | AR30: 0 | AS30: 0 | AT30: 0 | AU30: 0 | AV30: 0 | AW30: 0 | AX30: 0 | AY30: 0 | AZ30: 0 | BB30: =BA30 -> 0 | BC30: 0 | BD30: 0 | BE30: 0 | BF30: 0 | BG30: 0 | BH30: 0 | BI30: 0 | BJ30: 0 | BK30: 0 | BL30: 0
A31: 26 | AA31: 0 | AB31: 0 | AD31: 0 | AE31: 0 | AF31: 0 | AG31: 0 | AH31: 0 | AI31: 0 | AJ31: 0 | AK31: 0 | AL31: 0 | AM31: 0 | AN31: 0 | AP31: =AO31 -> 0 | AQ31: 0 | AR31: 0 | AS31: 0 | AT31: 0 | AU31: 0 | AV31: 0 | AW31: 0 | AX31: 0 | AY31: 0 | AZ31: 0 | BB31: =BA31 -> 0 | BC31: 0 | BD31: 0 | BE31: 0 | BF31: 0 | BG31: 0 | BH31: 0 | BI31: 0 | BJ31: 0 | BK31: 0 | BL31: 0
A32: 27 | AA32: 0 | AB32: 0 | AD32: 0 | AE32: 0 | AF32: 0 | AG32: 0 | AH32: 0 | AI32: 0 | AJ32: 0 | AK32: 0 | AL32: 0 | AM32: 0 | AN32: 0 | AP32: =AO32 -> 0 | AQ32: 0 | AR32: 0 | AS32: 0 | AT32: 0 | AU32: 0 | AV32: 0 | AW32: 0 | AX32: 0 | AY32: 0 | AZ32: 0 | BB32: =BA32 -> 0 | BC32: 0 | BD32: 0 | BE32: 0 | BF32: 0 | BG32: 0 | BH32: 0 | BI32: 0 | BJ32: 0 | BK32: 0 | BL32: 0
A33: 28 | AA33: 0 | AB33: 0 | AD33: 0 | AE33: 0 | AF33: 0 | AG33: 0 | AH33: 0 | AI33: 0 | AJ33: 0 | AK33: 0 | AL33: 0 | AM33: 0 | AN33: 0 | AP33: =AO33 -> 0 | AQ33: 0 | AR33: 0 | AS33: 0 | AT33: 0 | AU33: 0 | AV33: 0 | AW33: 0 | AX33: 0 | AY33: 0 | AZ33: 0 | BB33: =BA33 -> 0 | BC33: 0 | BD33: 0 | BE33: 0 | BF33: 0 | BG33: 0 | BH33: 0 | BI33: 0 | BJ33: 0 | BK33: 0 | BL33: 0
A34: 29 | AA34: 0 | AB34: 0 | AD34: 0 | AE34: 0 | AF34: 0 | AG34: 0 | AH34: 0 | AI34: 0 | AJ34: 0 | AK34: 0 | AL34: 0 | AM34: 0 | AN34: 0 | AP34: =AO34 -> 0 | AQ34: 0 | AR34: 0 | AS34: 0 | AT34: 0 | AU34: 0 | AV34: 0 | AW34: 0 | AX34: 0 | AY34: 0 | AZ34: 0 | BB34: =BA34 -> 0 | BC34: 0 | BD34: 0 | BE34: 0 | BF34: 0 | BG34: 0 | BH34: 0 | BI34: 0 | BJ34: 0 | BK34: 0 | BL34: 0
A35: 30 | AA35: 0 | AB35: 0 | AD35: 0 | AE35: 0 | AF35: 0 | AG35: 0 | AH35: 0 | AI35: 0 | AJ35: 0 | AK35: 0 | AL35: 0 | AM35: 0 | AN35: 0 | AP35: =AO35 -> 0 | AQ35: 0 | AR35: 0 | AS35: 0 | AT35: 0 | AU35: 0 | AV35: 0 | AW35: 0 | AX35: 0 | AY35: 0 | AZ35: 0 | BB35: =BA35 -> 0 | BC35: 0 | BD35: 0 | BE35: 0 | BF35: 0 | BG35: 0 | BH35: 0 | BI35: 0 | BJ35: 0 | BK35: 0 | BL35: 0

Sheet GA-55
C1: Please Install - Devlys 10 & Krutidev 10 Fonts
D2: =VLOOKUP(AF4,'Master Sheet'!A6:BL35,5,0) -> GPF 2004 | F2: Surrender | I2: =VLOOKUP(AF4,'Master Sheet'!A6:BL35,8,0) -> Yes | K2: Surrender Month | O2: =VLOOKUP(AF4,'Master Sheet'!A6:BL35,9,0) -> 9 | P2: HRA | R2: ='Master Sheet'!P1 -> 9% | S2: Bounus | V2: =VLOOKUP(AF4,'Master Sheet'!A6:BL35,10,0) -> Yes | X2: Senior Citizen | AB2: No
C4: ='Master Sheet'!C1 -> Govt. Sr. Sec. School Gordhanpura, Atru Baran | AF4: 1
C5: INCOME TAX CALCULATION (GA-55) 2024-25
C6: NAME : | D6: =VLOOKUP(AF4,'Master Sheet'!A6:BL35,2,0) -> Parmanand Meghwal | K6: =VLOOKUP(AF4,'Master Sheet'!A6:BL35,3,0) -> Senior Teacher | O6: PAN : | P6: =VLOOKUP(AF4,'Master Sheet'!A6:BL35,4,0) -> XXXXXXXX | T6: TAN: | U6: ='Master Sheet'!L1 -> JDHG09699E | Y6: A/C NO. | AB6: =VLOOKUP(AF4,'Master Sheet'!A6:BL35,6,0) -> 61146986773
M7: RAJTEACHERS.NET | Y7: MOB NO. | AB7: =VLOOKUP(AF4,'Master Sheet'!A6:BL35,7,0) -> 9784379510
C8: Month | D8: ALLOWANCES | O8: DEDUCTIONS | AC8: Bill No. & T.V. No.
D9: Basic Pay | E9: Dearness Pay | F9: Leave Pay | G9: Spl. Pay | H9: D.A. | I9: H.R.A. | J9: Washing Allow. | K9: ROP (If any, put the value in minus) | L9: Other Allowance 1 | M9: Other Allowance 2 | N9: Gross Salary | O9: =D2 -> GPF 2004 | P9: =IF(D2="GPF","GPF LOAN","") ->  | Q9: SI | R9: SI LOAN + INT | S9: RPMF/RGHS | T9: LIC | U9: G.I.S. | V9: HBA Premium | W9: HBA Interest | X9: Income Tax / TDS | Y9: HITKARI NIDHI | Z9: Other | AA9: Total Deduction | AB9: Net Payment
B10: 3 | C10: 2024-03-01 | D10: =VLOOKUP(AF4,'Master Sheet'!A6:BL35,11,0) -> 37800 | E10: 0 | F10: 0 | G10: 0 | H10: =ROUND(50%*D10,0) -> 18900 | I10: =IF($R$2=18%,ROUND(0.18*D10,0),ROUND(0.09*D10,0)) -> 3402 | J10: 0 | K10: 0 | L10: 0 | M10: 0 | N10: =SUM(D10:M10) -> 60102 | O10: =VLOOKUP(AF4,'Master Sheet'!A6:BL35,29,0) -> 2850 | P10: 0 | Q10: =VLOOKUP(AF4,'Master Sheet'!A6:BL35,17,0) -> 5000 | R10: 0 | S10: =IF(D10<18001,265,IF(D10<33501,440,IF(D10<54001,658,875))) -> 658 | T10: =VLOOKUP(AF4,'Master Sheet'!A6:BL35,53,0) -> 1200 | U10: 0 | X10: =VLOOKUP(AF4,'Master Sheet'!A6:BL35,41,0) -> 0 | AA10: =SUM(O10:Y10) -> 9708 | AB10: =N10-AA10 -> 50394 | AG10: 4 | AH10: =IF(AG10='GA-55'!$O$2,"Yes","No") -> No | AI10: =IF(AH10="Yes",ROUND(D11/2,0),0) -> 0 | AJ10: =IF(AH10="Yes",ROUND(H10/2,0),0) -> 0
B11: 4 | C11: 2024-04-01 | D11: =D10 -> 37800 | E11: =IF(E$10=0,0,ROUND(D11/2,0)) -> 0 | F11: =IF(F$10=0,0,F10) -> 0 | G11: 0 | H11: =ROUND(50%*D11,0) -> 18900 | I11: =IF($R$2=18%,ROUND(0.18*D11,0),ROUND(0.09*D11,0)) -> 3402 | J11: =IF(J$10=0,0,J10) -> 0 | K11: =IF(K$10=0,0,K10) -> 0 | L11: 0 | M11: =IF(M$10=0,0,M10) -> 0 | N11: =SUM(D11:M11) -> 60102 | O11: =VLOOKUP(AF4,'Master Sheet'!A6:BL35,30,0) -> 2850 | P11: =P10 -> 0 | Q11: =Q10 -> 5000 | R11: =R10 -> 0 | S11: =IF(D11<18001,265,IF(D11<33501,440,IF(D11<54001,658,875))) -> 658 | T11: =VLOOKUP(AF4,'Master Sheet'!A6:BL35,54,0) -> 1200 | U11: =VLOOKUP(AF4,'Master Sheet'!A6:BL35,18,0) -> 700.00 | V11: =V10 -> 0 | W11: 0 | X11: =VLOOKUP(AF4,'Master Sheet'!A6:BL35,42,0) -> 0 | Y11: 0 | AA11: =SUM(O11:Y11) -> 10408 | AB11: 49694 | AG11: 5 | AH11: =IF(AG11='GA-55'!$O$2,"Yes","No") -> No | AI11: =IF(AH11="Yes",ROUND(D12/2,0),0) -> 0 | AJ11: =IF(AH11="Yes",ROUND(H11/2,0),0) -> 0
B12: 5 | C12: 2024-05-01 | D12: 37800 | E12: =IF($E$10=0,0,ROUND(D12/2,0)) -> 0 | F12: 0 | G12: 0 | H12: 18900 | I12: 3402 | J12: 0 | K12: =IF(K$10=0,0,K11) -> 0 | L12: =IF(L$10=0,0,L11) -> 0 | M12: 0 | N12: 60102 | O12: =VLOOKUP(AF4,'Master Sheet'!A6:BL35,31,0) -> 2850 | P12: =P11 -> 0 | Q12: =Q11 -> 5000 | R12: =R11 -> 0 | S12: 658 | T12: =VLOOKUP(AF4,'Master Sheet'!A6:BL35,55,0) -> 1200 | U12: 0 | V12: 0 | W12: 0 | X12: =VLOOKUP(AF4,'Master Sheet'!A6:BL35,43,0) -> 0 | Y12: =Y11 -> 0 | AA12: 9708 | AB12: 50394 | AG12: 6 | AH12: =IF(AG12='GA-55'!$O$2,"Yes","No") -> No | AI12: 0 | AJ12: 0
B13: 6 | C13: 2024-06-01 | D13: 37800 | E13: 0 | F13: 0 | G13: 0 | H13: 18900 | I13: 3402 | J13: 0 | K13: 0 | L13: 0 | M13: 0 | N13: 60102 | O13: =VLOOKUP(AF4,'Master Sheet'!A6:BL35,32,0) -> 2850 | P13: 0 | Q13: 5000 | R13: 0 | S13: 658 | T13: =VLOOKUP(AF4,'Master Sheet'!A6:BL35,56,0) -> 1200 | U13: 0 | V13: 0 | W13: 0 | X13: =VLOOKUP(AF4,'Master Sheet'!A6:BL35,44,0) -> 0 | Y13: =Y12 -> 0 | AA13: 9708 | AB13: 50394 | AG13: 7 | AH13: =IF(AG13='GA-55'!$O$2,"Yes","No") -> No | AI13: 0 | AJ13: 0 | AK13: =AI13+AJ13 -> 0 | AL13: =IF(AH13="yes",ROUND(AI13*3/100,0)) -> FALSE
B14: 7 | C14: 2024-07-01 | D14: =MROUND(ROUND(1.03*D13,0),100) -> 38900 | E14: 0 | F14: =IF(F$10=0,0,F13) -> 0 | G14: =IF(G$10=0,0,G13) -> 0 | H14: 19450 | I14: 3501 | J14: =IF(J$10=0,0,J13) -> 0 | K14: =IF(K$10=0,0,K13) -> 0 | L14: =IF(L$10=0,0,L13) -> 0 | M14: =IF(M$10=0,0,M13) -> 0 | N14: 61851 | O14: =VLOOKUP(AF4,'Master Sheet'!A6:BL35,33,0) -> 2850 | P14: =P13 -> 0 | Q14: =Q13 -> 5000 | R14: =R13 -> 0 | S14: 658 | T14: =VLOOKUP(AF4,'Master Sheet'!A6:BL35,57,0) -> 1200 | U14: 0 | V14: =V13 -> 0 | W14: =W13 -> 0 | X14: =VLOOKUP(AF4,'Master Sheet'!A6:BL35,45,0) -> 0 | Y14: =Y13 -> 0 | AA14: 9708 | AB14: 52143 | AG14: 8 | AH14: =IF(AG14='GA-55'!$O$2,"Yes","No") -> No | AI14: 0 | AJ14: 0 | AK14: 0 | AL14: =IF(AH14="yes",ROUND(AI14*3/100,0)) -> FALSE
B15: 8 | C15: 2024-08-01 | D15: =D14 -> 38900 | E15: 0 | F15: 0 | G15: 0 | H15: 19450 | I15: 3501 | J15: 0 | K15: 0 | L15: 0 | M15: 0 | N15: 61851 | O15: =VLOOKUP(AF4,'Master Sheet'!A6:BL35,34,0) -> 2850 | Q15: 5000 | R15: 0 | S15: 658 | T15: =VLOOKUP(AF4,'Master Sheet'!A6:BL35,58,0) -> 1200 | U15: 0 | V15: 0 | W15: 0 | X15: =VLOOKUP(AF4,'Master Sheet'!A6:BL35,45,0) -> 0 | Y15: 0 | AA15: 9708 | AB15: 52143 | AG15: 9 | AH15: =IF(AG15='GA-55'!$O$2,"Yes","No") -> Yes | AI15: 19450 | AJ15: 9725 | AK15: 29175 | AL15: 584
B16: 9 | C16: 2024-09-01 | D16: 38900 | E16: 0 | F16: 0 | G16: 0 | H16: 19450 | I16: 3501 | J16: 0 | K16: 0 | L16: 0 | M16: 0 | N16: 61851 | O16: =VLOOKUP(AF4,'Master Sheet'!A6:BL35,35,0) -> 2850 | P16: 0 | Q16: 5000 | R16: 0 | S16: 658 | T16: =VLOOKUP(AF4,'Master Sheet'!A6:BL35,59,0) -> 1200 | U16: 0 | V16: 0 | W16: 0 | X16: =VLOOKUP(AF4,'Master Sheet'!A6:BL35,47,0) -> 0 | Y16: 0 | AA16: 9708 | AB16: 52143 | AG16: 10 | AH16: =IF(AG16='GA-55'!$O$2,"Yes","No") -> No | AI16: 0 | AJ16: 0 | AK16: 0 | AL16: FALSE
B17: 10 | C17: 2024-10-01 | D17: 38900 | E17: 0 | F17: =IF(F$10=0,0,F16) -> 0 | G17: =IF(G$10=0,0,G16) -> 0 | H17: 19450 | I17: 3501 | J17: 0 | K17: 0 | L17: 0 | M17: 0 | N17: 61851 | O17: =VLOOKUP(AF4,'Master Sheet'!A6:BL35,36,0) -> 2850 | P17: 0 | Q17: 5000 | R17: 0 | S17: 658 | T17: =VLOOKUP(AF4,'Master Sheet'!A6:BL35,60,0) -> 1200 | U17: 0 | V17: 0 | W17: 0 | X17: =VLOOKUP(AF4,'Master Sheet'!A6:BL35,48,0) -> 0 | Y17: 0 | AA17: 9708 | AB17: 52143 | AG17: 11 | AH17: =IF(AG17='GA-55'!$O$2,"Yes","No") -> No | AI17: 0 | AJ17: 0 | AK17: 0
B18: 11 | C18: 2024-11-01 | D18: 38900 | E18: 0 | F18: =IF(F$10=0,0,F17) -> 0 | G18: 0 | H18: =ROUND(53%*D18,0) -> 20617 | I18: =IF($R$2=20%,ROUND(0.2*D18,0),ROUND(0.1*D18,0)) -> 3890 | J18: 0 | K18: 0 | L18: 0 | M18: 0 | N18: 63407 | O18: =VLOOKUP(AF4,'Master Sheet'!A6:BL35,37,0) -> 2850 | Q18: 5000 | R18: 0 | S18: 658 | T18: =VLOOKUP(AF4,'Master Sheet'!A6:BL35,61,0) -> 1200 | U18: 0 | V18: 0 | W18: 0 | X18: =VLOOKUP(AF4,'Master Sheet'!A6:BL35,49,0) -> 0 | Y18: 0 | AA18: 9708 | AB18: 53699 | AG18: 12 | AH18: =IF(AG18='GA-55'!$O$2,"Yes","No") -> No | AI18: 0 | AJ18: 0
B19: 12 | C19: 2024-12-01 | D19: 38900 | E19: 0 | F19: =IF(F$10=0,0,F18) -> 0 | G19: 0 | H19: =ROUND(53%*D19,0) -> 20617 | I19: =IF($R$2=20%,ROUND(0.2*D19,0),ROUND(0.1*D19,0)) -> 3890 | J19: 0 | K19: 0 | L19: 0 | M19: 0 | N19: 63407 | O19: =VLOOKUP(AF4,'Master Sheet'!A6:BL35,38,0) -> 2850 | P19: 0 | Q19: 5000 | R19: 0 | S19: 658 | T19: =VLOOKUP(AF4,'Master Sheet'!A6:BL35,62,0) -> 1200 | U19: 0 | V19: 0 | W19: 0 | X19: =VLOOKUP(AF4,'Master Sheet'!A6:BL35,50,0) -> 0 | Y19: =VLOOKUP(AF4,'Master Sheet'!A6:BL35,19,0) -> 250 | AA19: 9958 | AB19: 53449 | AG19: 1 | AH19: =IF(AG19='GA-55'!$O$2,"Yes","No") -> No | AI19: 0 | AJ19: 0
B20: 1 | C20: 2025-01-01 | D20: 38900 | E20: 0 | F20: =IF(F$10=0,0,F19) -> 0 | G20: 0 | H20: 20617 | I20: 3890 | J20: 0 | K20: 0 | L20: 0 | M20: 0 | N20: 63407 | O20: =VLOOKUP(AF4,'Master Sheet'!A6:BL35,39,0) -> 2850 | P20: 0 | Q20: 5000 | R20: 0 | S20: 658 | T20: =VLOOKUP(AF4,'Master Sheet'!A6:BL35,63,0) -> 1200 | U20: 0 | V20: 0 | W20: 0 | X20: =VLOOKUP(AF4,'Master Sheet'!A6:BL35,51,0) -> 0 | AA20: 9708 | AB20: 53699 | AG20: 2 | AH20: =IF(AG20='GA-55'!$O$2,"Yes","No") -> No | AI20: 0 | AJ20: 0
B21: 2 | C21: 2025-02-01 | D21: 38900 | E21: 0 | F21: =IF(F$10=0,0,F20) -> 0 | G21: 0 | H21: 20617 | I21: 3890 | J21: 0 | K21: 0 | L21: 0 | M21: 0 | N21: 63407 | O21: =VLOOKUP(AF4,'Master Sheet'!A6:BL35,40,0) -> 2850 | P21: 0 | Q21: 5000 | R21: 0 | S21: 658 | T21: =VLOOKUP(AF4,'Master Sheet'!A6:BL35,64,0) -> 1200 | U21: 0 | V21: 0 | W21: 0 | X21: =VLOOKUP(AF4,'Master Sheet'!A6:BL35,52,0) -> 0 | AA21: 9708 | AB21: 53699 | AG21: 3 | AH21: =IF(AG21='GA-55'!$O$2,"Yes","No") -> No | AI21: 0 | AJ21: 0
C22: DA Arrear 50% | H22: =(ROUND(50%*D10,0)-ROUND(46%*D10,0))*2 -> 3024 | N22: =H22 -> 3024 | O22: =H22 -> 3024 | T22: 0 | AA22: 3024 | AB22: 0 | AI22: =SUM(AI10:AI21) -> 19450 | AJ22: =SUM(AJ10:AJ21) -> 9725 | AK22: 29175 | AL22: 584
C23: DA Arrear 53% | H23: =(ROUND(53%*D17,0)-ROUND(50%*D17,0))*4 -> 4668 | N23: =H23 -> 4668 | O23: =H23 -> 4668 | T23: 0 | AA23: =SUM(O23:Y23) -> 4668 | AB23: =N23-AA23 -> 0
C24: Surrender | D24: =IF(I2="NO",0,IF(O2=3,D21,VLOOKUP(O2,B10:D21,3,FALSE)))/2 -> 19450 | H24: =IF(AND('GA-55'!O2>3,'GA-55'!O2<11),ROUND('GA-55'!D24*50%,0),IF(AND('GA-55'!O2>10,'GA-55'!O2<13),ROUND('GA-55'!D24*53%,0),ROUND('GA-55'!D24*53%,0))) -> 9725 | N24: 29175 | AA24: 0 | AB24: 29175
C25: Bonus | D25: =IF(V2="Yes",6774,0) -> 6774 | N25: =SUM(D25:M25) -> 6774 | O25: =ROUND(D25*25/100,0) -> 1694 | AA25: 1694 | AB25: 5080
C26: Surrender Arrear | H26: =IF('GA-55'!I2="Yes",AL22,0) -> 584 | N26: =SUM(D26:M26) -> 584 | AA26: 0 | AB26: 584
C27: Salary Arrear 1 | D27: =VLOOKUP(AF4,'Master Sheet'!A6:BL35,12,0) -> 0 | H27: =VLOOKUP(AF4,'Master Sheet'!A6:BL35,13,0) -> 0 | I27: =VLOOKUP(AF4,'Master Sheet'!A6:BL35,14,0) -> 0 | N27: 0 | O27: =VLOOKUP(AF4,'Master Sheet'!A6:BL35,15,0) -> 0 | X27: =VLOOKUP(AF4,'Master Sheet'!A6:BL35,16,0) -> 0 | AA27: 0 | AB27: 0
C28: Salary Arrear 2 | N28: 0 | AA28: 0 | AB28: 0
C29: Salary Arrear 3 | N29: 0 | AA29: 0 | AB29: 0
C30: Other | E30: 0 | F30: 0 | N30: 0 | AA30: 0 | AB30: 0
C31: TOTAL | D31: =SUM(D10:D30) -> 488624 | E31: =SUM(E10:E30) -> 0 | F31: 0 | G31: 0 | H31: 253869 | I31: 43172 | J31: 0 | K31: 0 | L31: 0 | M31: 0 | N31: 785665 | O31: 43586 | P31: 0 | Q31: 60000 | R31: 0 | S31: 7896 | T31: 14400 | U31: 700.00 | V31: 0 | W31: 0 | X31: 0 | Y31: 250 | Z31: 0 | AA31: 126832 | AB31: 658833
E36: Signature of Employee | AB36: Signature of DDO

Sheet Tax Old Regime
B1: ='GA-55'!C4 -> Govt. Sr. Sec. School Gordhanpura, Atru Baran | S1: ='GA-55'!AF4 -> 1
B2: आयकर गणना प्रपत्र वर्ष 2024-25 (कर निर्धारण वर्ष 2025-26)
B3: 1 | C3: नाम कर्मचारी : | E3: ='GA-55'!D6 -> Parmanand Meghwal | K3: पद : | L3: ='GA-55'!K6 -> Senior Teacher | O3: PAN : | P3: =IF('GA-55'!P6="","",'GA-55'!P6) -> XXXXXXXX
B4: 2 | C4: आय: वर्ष-2024-25 में प्राप्त कुल वेतन (कर योग्य सुविधाओं के मूल्य सहित) | P4: रु. | Q4: ='GA-55'!N31 -> 785665.00
B5: 3 | C5: (i) गृह किराया, धारा 10(13-A) के अंतर्गत जो कर मुक्त हैं। | P5: रु. | Q5: =VLOOKUP(S1,'Master Sheet'!A6:BL55,26,0) -> 52740.00
C6: (ii) धारा 10(14) के अंतर्गत अन्य भत्ते | P6: रु. | Q6: 0.00
B7: 4 | C7: शेष (2-3) | P7: रु. | Q7: =Q4-Q5-Q6 -> 732925.00
B8: 5 | C8: (i) मनोरंजन भत्ता धारा 16(ii) के अंतर्गत (अधिकतम सीमा रु. 5000) | M8: 0.00
C9: (ii) व्यवसाय कर धारा 16(iii) के अंतर्गत | M9: 0.00
C10: (iii) स्टेंडर्ड डिडक्शन (Standard Deduction) 50,000 (अधिकतम) | M10: =IF(Q7<50000,Q7,50000) -> 50000.00 | P10: रु. | Q10: =SUM(M8:O10) -> 50000.00
B11: 6 | C11: शेष (4-5) | P11: रु. | Q11: =Q7-Q10 -> 682925.00
B12: 7 | C12: (अ) गृह संपत्ति से आय (1)स्वयं के उपयोग में शून्य | K12: (2) प्राप्त किराया रु. | M12: 0.00
C13: (ब) घटाये | E13: किराए का 30% | H13: गृह ऋण पर ब्याज | K13: गृहकर | M13: योग 7(ब)
E14: 0 | H14: =VLOOKUP(S1,'Master Sheet'!A6:BL55,20,0) -> 0 | K14: 0 | M14: =E14+H14+K14 -> 0
C15: शेष -/+(7(अ) एवं योग 7(ब) का | P15: रु. | Q15: =M12-M14 -> 0.00
B16: 8 | C16: कुल शेष -/+(6 एवं 7) | P16: रु. | Q16: =Q11+Q15 -> 682925.00
B17: 9 | C17: अन्य आय | P17: रु. | Q17: 0.00
B18: 10 | C18: सकल आय योग (8+9) | P18: रु. | Q18: =Q16+Q17 -> 682925.00
B19: 11 | C19: घटाइए कटौतियाँ - धारा US 80C, 80CCC,80CCD (1)
C20: (A) अधिकतम सीमा 1,50,000/- (धारा 80CCE) के अलावा
C21: (i) | D21: राज्य बीमा (SI) | H21: रु. | I21: ='GA-55'!Q31 -> 60000.00 | J21: (x) | K21: पेंशन प्लान हेतु अंशदान धारा (80CCC) | N21: रु. | O21: 0.00
C22: (ii) | D22: जीवन बीमा प्रीमियम (LIC) | H22: रु. | I22: ='GA-55'!T31+VLOOKUP(S1,'Master Sheet'!A6:BL55,22,0) -> 14400.00 | J22: (xi) | K22: राष्ट्रीय बचत पत्र पर आदत्त ब्याज | N22: रु. | O22: 0.00
C23: (iii) | D23: राष्ट्रीय बचत पत्र (NSC) | H23: रु. | I23: 0.00 | J23: (xii) | K23: ट्यूशन फीस | N23: रु. | O23: =VLOOKUP(S1,'Master Sheet'!A6:BL55,21,0) -> 30000.00
C24: (iv) | D24: लोक भविष्य निधि (PPF) | H24: रु. | I24: 0.00 | J24: (xiii) | K24: इक्विटी लिंक सेविंग स्कीम | N24: रु. | O24: 0.00
C25: (v) | D25: राष्ट्रीय बचत स्कीम (NSS) | H25: रु. | I25: 0.00 | J25: (xv) | K25: स्थगित वार्षिकी (Defferred Annuty) | N25: रु. | O25: 0.00
C26: (vi) | D26: सामान्य प्रावधायी निधि (GPF/GPF 2004) | H26: रु. | I26: ='GA-55'!O31 -> 43586.00 | J26: (xiv) | K26: पी.एल.आई. (PLI) | N26: रु. | O26: =VLOOKUP(S1,'Master Sheet'!A6:BL55,23,0) -> 0.00
C27: (vii) | D27: सामूहिक बीमा प्रीमियम (G.Ins.) | H27: रु. | I27: ='GA-55'!U11 -> 700.00 | J27: (xvi) | K27: अन्य जमा राशि (80C के अंतर्गत) | N27: रु. | O27: 0.00
C28: (viii) | D28: यू.एल.आई.पी./वार्षिक प्लान | H28: रु. | I28: 0.00 | J28: (xvii) | K28: सुकन्या समृद्धि योजना में जमा राशि | N28: रु. | O28: =VLOOKUP(S1,'Master Sheet'!A6:BL55,24,0) -> 0.00
C29: (ix) | D29: गृह ऋण किश्त (HBA Premium) | H29: रु. | I29: 0.00 | J29: (xviii) | N29: रु.
C30: योग (i से XViii) | N30: रु. | O30: =SUM(I21:I29)+SUM(O21:O29) -> 148686.00
C31: अधिकतम कटौती की राशि 1.50 लाख रु. तक | P31: रु. | Q31: =IF(O30<150001,ROUND(O30,0),150000) -> 148686.00
C32: (B) घटाइए - धारा 80CCD 1(B) नवीन पेंशन योजना में अतिरिक्त अंशदान (अधिकतम रु. 50,000) | P32: रु.
C33: योग 11(A+B+C) | P33: रु. | Q33: =SUM(Q31:Q32) -> 148686.00
B34: 12 | C34: अन्य कटौतियाँ
C35: 1-धारा 80D, चिकित्सा बीमा प्रीमियम (स्वयं, पति/पत्नी व बच्चों के लिए रु. 25000, माता-पिता के लिए रु. 25000, सीनियर सिटीजन रु. 50,000) | P35: रु. | Q35: 0.00
C36: 2-धारा 80D, विकलांग आश्रितों के चिकित्सा आश्रितों के चिकित्सा उपचार (अधिकतम 75,000 तथा 80% या अधिक विकलांगता रु. 125000) | P36: रु. | Q36: =VLOOKUP(S1,'Master Sheet'!A6:BL55,25,0) -> 0.00
C37: 3-धारा 80D विशीष्ट रोगों के उपचार हेतु कटौती (अधिकतम रु. 40,000 , सीनियर सिटीजन हेतु रु. 100,000) | P37: रु. | Q37: 0.00
C38: 4-धारा 80D, उच्च शिक्षा हेतु लिए ऋण का ब्याज | P38: रु. | Q38: 0.00
C39: 5-धारा 80G धर्मार्थ संस्थाओं आदि को दिये दान (क श्रेणी में 100 प्रतिशत एवं ख श्रेणी में 50 प्रतिशत) | P39: रु. | Q39: 0.00
C40: 6-धारा 80U स्थाई रूप से शारीरिक असमर्थता की दशा में (अधिकतम 75,000 तथा अधिनियम 1995 के अनुसार 125,000) | P40: रु. | Q40: 0.00
C41: 7-धारा 80 TTA बचत खाते पर अधिकतम ब्याज रु. 10,000 194(1A) (80TTB-वरिष्ठ नागरिक अधिकतम ब्याज 50,000 रु.) | P41: रु. | Q41: 0.00
C42: 8-धारा 80GGA अनुमोदित वैज्ञानिक, सामाजिक, ग्रामीण विकास आदि हेतु दिया गया दान | P42: रु. | Q42: 0.00
C43: 9-धारा 80GGC राजनीतिक पार्टियों को दिया गया दान | P43: रु. | Q43: 0.00
C44: कुल योग 12 (1 से 9 तक) | P44: रु. | Q44: =SUM(Q35:Q43) -> 0.00
B45: 13 | C45: कुल कटौती ( 11 + 12) | P45: रु. | Q45: =Q33+Q44 -> 148686.00
B46: 14 | C46: कर योग्य आय ( 10-13 ) | P46: रु. | Q46: =(Q18-Q45) -> 534239.00
B47: 15 | C47: कुल आय की राशि को सम्पूर्ण करना (दस के गुणज में करना) धारा 288A | P47: रु. | Q47: =ROUND(Q46,-1) -> 534240.00
B48: 16 | C48: आय की गणना उपरोक्त कॉलम 15 के आधार पर
C49: एक व्यक्ति कर दाता | H49: वरिष्ठ नागरिक (60 से 80 वर्ष तक) | L49: 80 वर्ष या अधिक आयु
C50: 2,50,000 तक | F50: Nil | H50: 3,00,000 तक | K50: Nil | L50: 3,00,000 तक | O50: Nil | P50: रु. | Q50: 0.00
C51: 2,50,001-5,00,000 | F51: 5% | H51: 3,00,001-5,00,000 | K51: 5% | L51: 5,00,000 तक | O51: 5% | P51: रु. | Q51: =ROUND(IF('GA-55'!AB2="No",IF(Q47<250001,0,IF(Q47>500000,12500,((Q47-250000)*0.05))),IF(Q47<300001,0,IF(Q47>500000,10000,((Q47-300000)*0.05)))),0) -> 12500.00
C52: 5,00,001-10,00,000 | F52: 20% | H52: 5,00,001-10,00,000 | K52: 20% | L52: 5,00,001-10,00,000 | O52: 20% | P52: रु. | Q52: =IF(Q47<500001,0,IF(Q47>1000000,100000,((Q47-500000)*0.2))) -> 6848.00
C53: 10,00,000 से अधिक | F53: 30% | H53: 10,00,000 से अधिक | K53: 30% | L53: 10,00,000 से अधिक | O53: 30% | P53: रु. | Q53: =IF(Q47<1000001,0,((Q47-1000000)*0.3)) -> 0.00
C54: (1) योग आयकर | P54: रु. | Q54: =SUM(Q50:Q53) -> 19348.00
C55: (2) छूट धारा 87(A) (2.50 लाख से 5.00 लाख तक की कर योग्य आय पर आयकर की छूट अधिकतम रु. 12,500 तक) | P55: रु. | Q55: =IF(Q47>500000,0,IF(Q54<12501,Q54,12500)) -> 0.00
C56: (3) शेष आयकर (1-2) | P56: रु. | Q56: =Q54-Q55 -> 19348.00
C57: (4) शिक्षा उपकार 2% एवं उच्च शिक्षा के लिए अधिभार 2% (योग 4%) | P57: रु. | Q57: =ROUND(Q56*0.04,0) -> 774.00
C58: कुल आयकर (3+4) | P58: रु. | Q58: =SUM(Q56:Q57) -> 20122.00
B59: 17 | C59: घटाइए : राहत धारा 89 के तहत | P59: रु. | Q59: 0.00
B60: 18 | C60: कुल शेष आयकर | P60: रु. | Q60: =Q58-Q59 -> 20122.00
B61: 19 | C61: आयकर कटौती का विवरण | F61: सितम्बर 2024 तक रु. | J61: दिसम्बर 2024 तक रु. | L61: जनवरी 2025 तक रु. | M61: फरवरी 2025 तक रु. | O61: टी.डी.एस. रु. | P61: योग कॉलम 19
F62: =SUM('GA-55'!X10:X16) -> 0 | J62: =SUM('GA-55'!X17:X19) -> 0 | L62: ='GA-55'!X20 -> 0 | M62: ='GA-55'!X21 -> 0 | O62: 0 | P62: =F62+J62+L62+M62+O62 -> 0.00
B63: =IF(Q60>P62,"Income Tax Payable",IF(Q60<P62,"Income Tax Refundable","Income Tax Payble/Refundable")) -> Income Tax Payable | P63: रु. | Q63: =IF(Q60>P62,Q60-P62,P62-Q60) -> 20122.00
D65: हस्ताक्षर कार्मिक | M65: हस्ताक्षर डीडीओ

Sheet Tax New Regime
B1: ='GA-55'!C4 -> Govt. Sr. Sec. School Gordhanpura, Atru Baran
B2: आयकर गणना प्रपत्र वर्ष 2024-25 (कर निर्धारण वर्ष 2025-26)
B3: 1 | C3: नाम कर्मचारी : | E3: ='GA-55'!D6 -> Parmanand Meghwal | K3: पद : | L3: ='GA-55'!K6 -> Senior Teacher | O3: PAN : | P3: =IF('GA-55'!P6="","",'GA-55'!P6) -> XXXXXXXX
B4: 2 | C4: आय: वर्ष-2024-25 में प्राप्त कुल वेतन (कर योग्य सुविधाओं के मूल्य सहित) | P4: रु. | Q4: ='GA-55'!N31 -> 785665.00
B5: 3 | C5: (i) गृह किराया, धारा 10(13-A) के अंतर्गत जो कर मुक्त हैं। | P5: रु. | Q5: 0.00
C6: (ii) धारा 10(14) के अंतर्गत अन्य भत्ते | P6: रु. | Q6: 0.00
B7: 4 | C7: शेष (4-5) | P7: रु. | Q7: =Q4-Q5-Q6 -> 785665.00
B8: 5 | C8: (i) मनोरंजन भत्ता धारा 16(ii) के अंतर्गत (अधिकतम सीमा रु. 5000) | M8: 0.00
C9: (ii) व्यवसाय कर धारा 16(iii) के अंतर्गत | M9: 0.00
C10: (iii) स्टेंडर्ड डिडक्शन (Standard Deduction) 50,000 (अधिकतम) | M10: 75000.00 | P10: रु. | Q10: =SUM(M8:O10) -> 75000.00
B11: 6 | C11: शेष (4-5) | P11: रु. | Q11: =Q7-Q10 -> 710665.00
B12: 7 | C12: (अ) गृह संपत्ति से आय (1)स्वयं के उपयोग में शून्य | K12: (2) प्राप्त किराया रु. | M12: 0.00
C13: (ब) घटाये | E13: किराए का 30% | H13: गृह ऋण पर ब्याज | K13: गृहकर | M13: योग 7(ब)
E14: =ROUND(M12*0.3,0) -> 0.00 | H14: 0.00 | K14: 0.00 | M14: =E14+H14+K14 -> 0.00
C15: शेष -/+(7(अ) एवं योग 7(ब) का | P15: रु. | Q15: =M12-M14 -> 0.00
B16: 8 | C16: कुल शेष -/+(6 एवं 7) | P16: रु. | Q16: =Q11+Q15 -> 710665.00
B17: 9 | C17: अन्य आय | P17: रु. | Q17: 0.00
B18: 10 | C18: सकल आय योग (8+9) | P18: रु. | Q18: =Q16+Q17 -> 710665.00
B19: 11 | C19: घटाइए कटौतियाँ - धारा US 80C, 80CCC,80CCD (1)
C20: (A) अधिकतम सीमा 1,50,000/- (धारा 80CCE) के अलावा
C21: (i) | D21: राज्य बीमा (SI) | H21: रु. | I21: 0.00 | J21: (x) | K21: पेंशन प्लान हेतु अंशदान धारा (80CCC) | N21: रु. | O21: 0.00
C22: (ii) | D22: जीवन बीमा प्रीमियम (LIC) | H22: रु. | I22: 0.00 | J22: (xi) | K22: राष्ट्रीय बचत पत्र पर आदत्त ब्याज | N22: रु. | O22: 0.00
C23: (iii) | D23: राष्ट्रीय बचत पत्र (NSC) | H23: रु. | I23: 0.00 | J23: (xii) | K23: ट्यूशन फीस | N23: रु. | O23: 0.00
C24: (iv) | D24: लोक भविष्य निधि (PPF) | H24: रु. | I24: 0.00 | J24: (xiii) | K24: इक्विटी लिंक सेविंग स्कीम | N24: रु. | O24: 0.00
C25: (v) | D25: राष्ट्रीय बचत स्कीम (NSS) | H25: रु. | I25: 0.00 | J25: (xv) | K25: स्थगित वार्षिकी (Defferred Annuty) | N25: रु. | O25: 0.00
C26: (vi) | D26: सामान्य प्रावधायी निधि (GPF/GPF 2004) | H26: रु. | I26: 0.00 | J26: (xiv) | K26: पी.एल.आई. (PLI) | N26: रु. | O26: 0.00
C27: (vii) | D27: सामूहिक बीमा प्रीमियम (G.Ins.) | H27: रु. | I27: 0.00 | J27: (xvi) | K27: अन्य जमा राशि (80C के अंतर्गत) | N27: रु. | O27: 0.00
C28: (viii) | D28: यू.एल.आई.पी./वार्षिक प्लान | H28: रु. | I28: 0.00 | J28: (xvii) | K28: सुकन्या समृद्धि योजना में जमा राशि | N28: रु. | O28: 0.00
C29: (ix) | D29: गृह ऋण किश्त (HBA Premium) | H29: रु. | I29: 0.00 | J29: (xviii) | N29: रु. | O29: 0.00
C30: योग (i से XViii) | N30: रु. | O30: =SUM(I21:I29)+SUM(O21:O29) -> 0.00
C31: अधिकतम कटौती की राशि 1.50 लाख रु. तक | P31: रु. | Q31: 0.00
C32: (B) घटाइए - धारा 80CCD 1(B) नवीन पेंशन योजना में अतिरिक्त अंशदान (अधिकतम रु. 50,000) | P32: रु. | Q32: 0.00
C33: योग 11(A+B+C) | P33: रु. | Q33: =SUM(Q31:Q31) -> 0.00
B34: 12 | C34: अन्य कटौतियाँ
C35: 1-धारा 80D, चिकित्सा बीमा प्रीमियम (स्वयं, पति/पत्नी व बच्चों के लिए रु. 25000, माता-पिता के लिए रु. 25000, सीनियर सिटीजन रु. 50,000) | P35: रु. | Q35: 0.00
C36: 2-धारा 80D, विकलांग आश्रितों के चिकित्सा आश्रितों के चिकित्सा उपचार (अधिकतम 75,000 तथा 80% या अधिक विकलांगता रु. 125000) | P36: रु. | Q36: 0.00
C37: 3-धारा 80D विशीष्ट रोगों के उपचार हेतु कटौती (अधिकतम रु. 40,000 , सीनियर सिटीजन हेतु रु. 100,000) | P37: रु. | Q37: 0.00
C38: 4-धारा 80D, उच्च शिक्षा हेतु लिए ऋण का ब्याज | P38: रु. | Q38: 0.00
C39: 5-धारा 80D धर्मार्थ संस्थाओं आदि को दिये दान (क श्रेणी में 100 प्रतिशत एवं ख श्रेणी में 50 प्रतिशत) | P39: रु. | Q39: 0.00
C40: 6-धारा 80U स्थाई रूप से शारीरिक असमर्थता की दशा में (अधिकतम 75,000 तथा अधिनियम 1995 के अनुसार 125,000) | P40: रु. | Q40: 0.00
C41: 7-धारा 80 TTA बचत खाते पर अधिकतम ब्याज रु. 10,000 194(1A) (80TTB-वरिष्ठ नागरिक अधिकतम ब्याज 50,000 रु.) | P41: रु. | Q41: 0.00
C42: 8-धारा 80GGA अनुमोदित वैज्ञानिक, सामाजिक, ग्रामीण विकास आदि हेतु दिया गया दान | P42: रु. | Q42: 0.00
C43: 9-धारा 80GGC राजनीतिक पार्टियों को दिया गया दान | P43: रु. | Q43: 0.00
C44: कुल योग 12 (1 से 9 तक) | P44: रु. | Q44: 0.00
B45: 13 | C45: कुल कटौती ( 11 + 12) | P45: रु. | Q45: =Q33+Q44 -> 0.00
B46: 14 | C46: कर योग्य आय ( 10-13 ) | P46: रु. | Q46: =(Q18-Q45) -> 710665.00
B47: 15 | C47: कुल आय की राशि को सम्पूर्ण करना (दस के गुणज में करना) धारा 288A | P47: रु. | Q47: =ROUND(Q46,-1) -> 710670.00
B48: 16 | C48: आय की गणना उपरोक्त कॉलम 15 के आधार पर
C49: एक व्यक्ति कर दाता | H49: वरिष्ठ नागरिक (60 से 80 वर्ष तक) | L49: 80 वर्ष या अधिक आयु
C50: 3,00,000 तक | F50: Nil | H50: 3,00,000 तक | K50: Nil | L50: 3,00,000 तक | O50: Nil | P50: रु. | Q50: 0.00
C51: 3,00,001-7,00,000 | F51: 5% | H51: 3,00,001-7,00,000 | K51: 5% | L51: 7,00,000 तक | O51: 5% | P51: रु. | Q51: =ROUND(IF('GA-55'!AB2="No",IF(Q47<300001,0,IF(Q47>700000,20000,((Q47-300000)*0.05))),IF(Q47<300001,0,IF(Q47>700000,10000,((Q47-300000)*0.05)))),0) -> 20000.00
C52: 7,00,001-10,00,000 | F52: 10% | H52: 7,00,001-10,00,000 | K52: 10% | L52: 7,00,001-10,00,000 | O52: 10% | P52: रु. | Q52: =IF(Q47<700001,0,IF(Q47>1000000,30000,((Q47-700000)*0.1))) -> 1067.00
C53: 10,00,001-12,00,000 | F53: 15% | H53: 10,00,001-12,00,000 | K53: 15% | L53: 10,00,001-12,00,000 | O53: 15% | P53: रु. | Q53: =IF(Q47<1000001,0,IF(Q47>1200000,30000,((Q47-1000000)*0.15))) -> 0.00
C54: 12,00,001-15,00,000 | F54: 20% | H54: 12,00,001-15,00,000 | K54: 20% | L54: 12,00,001-15,00,000 | O54: 20% | P54: रु. | Q54: =IF(Q47<1200001,0,IF(Q47>1500000,60000,((Q47-1200000)*0.2))) -> 0.00
C55: 15,00,001 से अधिक | F55: 30% | H55: 15,00,001 से अधिक | K55: 30% | L55: 15,00,001 से अधिक | O55: 30% | P55: रु. | Q55: =IF(Q47<1500001,0,((Q47-1500000)*0.3)) -> 0.00
C56: (1) योग आयकर | P56: रु. | Q56: =SUM(Q50:Q55) -> 21067.00
C57: (2) छूट धारा 87(A) (3.00 लाख से 7.00 लाख तक की कर योग्य आय पर आयकर की छूट अधिकतम रु. 25,000 तक) | P57: रु. | Q57: =IF(Q47<700001,Q56,0) -> 0.00
C58: (3) छूट धारा 115BAC(1) के तहत सीमांत राहत लाभ (Marginal Relief benefit under section 115BAC(1) | P58: रु. | Q58: =IF(Q47<700001,0,IF(Q47>727770,0,Q56-(Q47-700000))) -> 10397.00
C59: (4) शेष आयकर (1-2) | P59: रु. | Q59: =Q56-Q57-Q58 -> 10670.00
C60: (5) शिक्षा उपकार 2% एवं उच्च शिक्षा के लिए अधिभार 2% (योग 4%) | P60: रु. | Q60: =ROUND(Q59*0.04,0) -> 427.00
C61: कुल आयकर (3+4) | P61: रु. | Q61: =SUM(Q59:Q60) -> 11097.00
B62: 17 | C62: घटाइए : राहत धारा 89 के तहत | P62: रु. | Q62: 0.00
B63: 18 | C63: कुल शेष आयकर | P63: रु. | Q63: =Q61-Q62 -> 11097.00
B64: 19 | C64: आयकर कटौती का विवरण | F64: सितम्बर 2024 तक रु. | J64: दिसम्बर 2024 तक रु. | L64: जनवरी 2025 तक रु. | M64: फरवरी 2025 तक रु. | O64: टी.डी.एस. रु. | P64: योग कॉलम 19
F65: =SUM('GA-55'!X10:X16) -> 0 | J65: =SUM('GA-55'!X17:X19) -> 0 | L65: ='GA-55'!X20 -> 0 | M65: ='GA-55'!X21 -> 0 | O65: 0 | P65: =F65+J65+L65+M65+O65 -> 0.00
B66: =IF(Q63>P65,"Income Tax Payable",IF(Q63<P65,"Income Tax Refundable","Income Tax Payble/Refundable")) -> Income Tax Payable | P66: रु. | Q66: =IF(Q63>P65,Q63-P65,P65-Q63) -> 11097.00
D68: हस्ताक्षर कार्मिक | O68: हस्ताक्षर डीडीओ

Sheet Form 16
A1: FORM NO.16
A2: [See rule 31 (1) (a)]
A3: Part A
A4: Certificate under section 203 of the Income Tax Act, 1961 for tax deducted
A5: at source from income chargeable under the head “ Salaries “
A6: Name and address of the employer | G6: Name and Designation of the employee
A7: ='Master Sheet'!U1 -> Rajendra Kumar Chittora | G7: ='GA-55'!D6 -> Parmanand Meghwal
A8: Principal | G8: ='GA-55'!K6 -> Senior Teacher
A9: ='GA-55'!C4 -> Govt. Sr. Sec. School Gordhanpura, Atru Baran | G9: =A9 -> Govt. Sr. Sec. School Gordhanpura, Atru Baran
A11: PAN of the Deducter | D11: TAN of the Deducter | G11: PAN of the Employee
A12: ='Master Sheet'!AL1 -> ABCPC2588K | D12: ='GA-55'!U6 -> JDHG09699E | G12: ='GA-55'!P6 -> XXXXXXXX
A13: TDS Circle where annual | G13: PERIOD | J13: Assessment Year
A14: return / statement under | G14: FROM | I14: TO | J14: 2024-25
A15: section 206 is to be filed | G15: 01.04.2023 | I15: 31.03.2024
A16: Smmary of amount Paid/credited and tax Deducted at source thereon in respect of the Employee
A17: Quarter(s) | C17: Receipt Numbersof Original Quaterly Statements of TDS Under Sub-Section (3) of Section 200 | F17: Amount Paid cridited | H17: Amount of Tax Deducted (Rs) | K17: Amount of Tax Deposited / Remitted (Rs)
A18: Quarter 1 | F18: =SUM('GA-55'!N10+'GA-55'!N11+'GA-55'!N12) -> 180306 | H18: =SUM('GA-55'!X10:X12) -> 0 | K18: =H18 -> 0
A19: Quarter 2 | F19: =SUM('GA-55'!N13+'GA-55'!N14+'GA-55'!N15+'GA-55'!N22) -> 186828 | H19: =SUM('GA-55'!X13:X15)+'GA-55'!X22 -> 0 | K19: =H19 -> 0
A20: Quarter 3 | F20: =SUM('GA-55'!N16+'GA-55'!N17+'GA-55'!N18+'GA-55'!N25) -> 193883 | H20: =SUM('GA-55'!X16:X18)+'GA-55'!X25 -> 0 | K20: =H20 -> 0
A21: Quarter 4 | F21: =SUM('GA-55'!N19+'GA-55'!N20+'GA-55'!N21+'GA-55'!N22+'GA-55'!N24+'GA-55'!N26+'GA-55'!N227+'GA-55'!N28+'GA-55'!N29+'GA-55'!N30) -> 223004 | H21: =SUM('GA-55'!X19:X30) -> 0 | K21: =H21 -> 0
A22: Total | F22: =SUM(F18:F21) -> 784021 | H22: =SUM(H18:H21) -> 0 | K22: =SUM(K18:K21) -> 0
A23: I.DETAILS TAX DEDUCTED AND DEPOSITED INTO CENTRAL GOVERNMENT ACCOUNT THROUGH BOOK ADJUSTMENT
A24: S.No | B24: Tax Deposited In Respect | E24: Book Identification Number (BIN)
B25: of the deducter | E25: Receipt Numbers of | G25: DDO Serial No in | I25: Date Of Transfer | K25: Status of Maching
C26: (Rs) | E26: Form No.24G | G26: Form No.24G | I26: Form No.24G | K26: with Form.No 24G
I27: (dd/mm/yyyy)
A28: 1 | B28: ='GA-55'!X10 -> 0
A29: 2 | B29: ='GA-55'!X11 -> 0
A30: 3 | B30: ='GA-55'!X12 -> 0
A31: 4 | B31: ='GA-55'!X13 -> 0
A32: 5 | B32: ='GA-55'!X14 -> 0
A33: 6 | B33: ='GA-55'!X15 -> 0
A34: 7 | B34: ='GA-55'!X16 -> 0
A35: 8 | B35: ='GA-55'!X17 -> 0
A36: 9 | B36: ='GA-55'!X18 -> 0
A37: 10 | B37: ='GA-55'!X19 -> 0
A38: 11 | B38: ='GA-55'!X20 -> 0
A39: 12 | B39: ='GA-55'!X21 -> 0
A40: 13 | B40: =SUM('GA-55'!X22+'GA-55'!X23+'GA-55'!X24+'GA-55'!X25+'GA-55'!X26+'GA-55'!X27+'GA-55'!X28+'GA-55'!X29+'GA-55'!X30) -> 0
A41: Total (Rs) | B41: =SUM(B28:B40) -> 0
A43: II.DETAILS TAX DEDUCTED AND DEPOSITED INTO CENTRAL GOVERNMENT ACCOUNT THROUGH BOOK CHALLANA
A44: S.No | B44: Tax Deposited In Respect | E44: Book Identification Number (CIN)
B45: of the deducter | E45: BRS Code of the | G45: Date on Which | I45: Challana Serial | K45: Status of Maching
C46: (Rs) | E46: Bank Branch | G46: Tax Deposited | I46: Number | K46: with Form.No 24G
G47: (dd/mm/yyyy)
A48: 1
A49: 2
A50: 3
A51: 4
A52: 5
A53: 6
A54: 7
A55: 8
A56: 9
A57: 10
A58: 11
A59: 12
A60: 13
A61: Total (Rs) | B61: =SUM(B48:D59) -> 0
A62: Verification
A63: I, | B63: ='Master Sheet'!U1 -> Rajendra Kumar Chittora | E63: Son/Doughter of | G63: ='Master Sheet'!AE1 -> Bhanwar Lal | J63: Working In the Capacity Of
A64: =A8 -> Principal | D64: (Designation) do hereby certify that a sum of Rs. | I64: =H22 -> 0 | J64: (in words)
A65: =SpellNumber(I64) ->  | F65: has beeen deducted at source and paid to the credit of the Central Government.
A66: I further certify that the information given above is true and correct based on the book of accounts, documents and TDS Statements, TDS Deposited and other available records.
A68: Notes :
A69: 1. Government deductors to fill information in item I if tax is paid without production of an income-tax challan and in item II if tax .
A70: is paid accompanied by an income-tax challan
A71: 2. Non-Government deductors to fill information in item II.
A72: 3. The deductor shall furnish the address of the Commissioner of Income-tax (TDS) having jurisdiction as regards TDS
A73: statements of the assessee.
A74: 4. If an assessee is employed under one employer only during the year, certificate in Form No. 16 issued for the quarter ending on
A75: 31st March of the financial year shall contain the details of tax deducted and deposited for all the quarters of the financial year.
A76: 5. If an assessee is employed under more than one employer during the year, each of the employers shall issue Part
A77: A of the certificate in Form No. 16 pertaining to the period for which such assessee was employed with each of the employers.
A78: Part B (Annexure) of the certificate in Form No.16 may be issued by each of the employers or the last employer at the
A79: option of the assessee.
A80: 6. In items I and II, in column for tax deposited in respect of deductee, furnish total amount of TDS and education cess."
A82: Part B
A83: DETAILS OF SALARY PAID AND ANY OTHER INCOME AND TAX DEDUCTED
A84: 1. Gross Salary *
B85: ( a ) Salary as per provisions contained in section 17 (1) | I85: ='Tax Old Regime'!Q4 -> 785665
B86: ( b ) Value of perquisites under section 17 (2)
B87: (as per Form No. 12 BA, wherever applicable)
B88: ( c ) Profits in lieu of Salary under section 17 (3)
B89: (as per Form No. 12 BA, wherever applicable)
B90: ( d ) Total | J90: =I85+I86+I87+I88+I89 -> 785665
A92: 2. Less : Allowance to the extent exempt under section 10
A93: a)HRA | I93: ='Tax Old Regime'!Q5 -> 52740
A94: b)Other
A95: 3. Balance (1-2) | J95: =J90-I93-I94 -> 732925
A97: 4. Deductions :
B98: (a) Standard deduction | F98: Rs. | G98: 50000
B99: (b) Entertainment allowance | F99: Rs. | G99: 0
B100: (c) Tax on Employment | F100: Rs. | G100: 0
A101: 5. Aggregate of 4 (a to c) | I101: 50000
A103: 6. Income chargeable under the Head ‘Salaries’(3-5) | L103: =IF(AND((J95>50000)),(J95-I101),0) -> 682925
A105: 7. Add. : Any other income reported by the employee
B106: Less:- Loss From House Properties | L106: ='[1]Other Deduction'!B9 -> 0
A108: 8. Gross total income (6+7) | L108: =L103+L105-L106 -> 682925
G109: Gross Amount | I109: Qualifying Amt. | K109: Deductible Amt.
A110: 9. Deductions Under Chapter VIA
A111: A. | B111: Sections 80C,80CC and 80CCD1
A112: (a) | B112: Section 80C
B113: (i) | C113: GPF/NPS | F113: Rs. | G113: ='GA-55'!O31 -> 43586 | I113: =G113 -> 43586 | K113: =I113 -> 43586
B114: (ii) | C114: STATE INSURANCE | F114: Rs. | G114: ='Tax Old Regime'!I21 -> 60000 | I114: 60000 | K114: 60000
B115: (iii) | C115: LIC | F115: Rs. | I115: 0 | K115: 0
B116: (iv) | C116: Group Ins. | F116: Rs. | G116: ='Tax Old Regime'!I27 -> 700 | I116: 700 | K116: 700
B117: (vi) | C117: House Loan Installment | F117: Rs. | G117: ='Tax Old Regime'!I29 -> 0 | I117: 0 | K117: 0
B118: (vii) | C118: Others | F118: Rs. | G118: ='Tax Old Regime'!I23+'Tax Old Regime'!I24+'Tax Old Regime'!I25+'Tax Old Regime'!I28+'Tax Old Regime'!O22+'Tax Old Regime'!O23+'Tax Old Regime'!O24+'Tax Old Regime'!O25+'Tax Old Regime'!O26+'Tax Old Regime'!O27+'Tax Old Regime'!O28+'Tax Old Regime'!O29+'Tax Old Regime'!O30 -> 178686 | I118: 178686 | K118: 178686
A119: (b) | B119: Section 80CCC | F119: Rs. | I119: 0 | K119: 0
A120: (c) | B120: Section 80CCD | F120: Rs. | I120: 0 | K120: 0
A121: Aggregate amount deductible under the three sections | G121: =SUM(G113:G120) -> 282972 | I121: =SUM(I113:I120) -> 282972 | K121: =IF(SUM(K113:L118)>150000,150000,SUM(K113:L118)) -> 150000
A122: i.e.80C, 80CCC and 80CCD
A124: (d) | B124: Section 80CCD2 | F124: Rs. | G124: 0 | I124: =G124 -> 0 | K124: =I124 -> 0
A125: (e) | B125: Section 80CCD (1B) | F125: Rs. | G125: ='[1]Tax Old Regime'!Q33 -> 0 | I125: =G125 -> 0 | K125: =I125 -> 0
A127: B. | B127: Other Sections ( e.g. 80E, 80G, 80TTA etc) Under Chapter VIA
G128: Gross Amount | I128: Qualifying Amt. | K128: Deductible Amt.
B129: (i) | C129: अन्य कटौतियाँ | F129: Rs. | I129: =G129 -> 0 | K129: =I129 -> 0
B130: (ii) | F130: Rs. | I130: =G130 -> 0 | K130: =I130 -> 0
B131: (iii) | F131: Rs. | I131: =G131 -> 0 | K131: =I131 -> 0
A132: 10. Aggregate of deductible amount under chapter VI-A | K132: =K121+K124+K125+K129+K130+K131 -> 150000 | L132: 0
A134: 11. Total Income (8-10 ) | K134: ='Tax Old Regime'!Q47 -> 534240
A136: 12. Tax on Total Income | K136: ='Tax Old Regime'!Q54 -> 19348
A137: 13. Rebate U/S 87a | K137: ='[1]Tax Old Regime'!Q55 -> 0
A138: 14. Tax Payable on total income (12-13) | K138: =K136-K137 -> 19348
A139: 15.Education & Health Cess 4% | K139: ='Tax Old Regime'!Q57 -> 774
A140: 16. Tax payable (14+15) | K140: ='Tax Old Regime'!Q58 -> 20122
A141: 17. Relife Under Section 89 (attach details) | K141: =#REF! -> 
A142: 18. Tax payable (16-17) | K142: ='Tax Old Regime'!Q60 -> 20122
A143: 19.Tax Deducted at source U/S 192 | K143: =H22+B61 -> 0
A144: 20. Tax payable / refundable (17-18) | K144: =K142-K143 -> 20122
A145: Verification
A146: I, | B146: =B63 -> Rajendra Kumar Chittora | E146: Son/Doughter of | G146: =G63 -> Bhanwar Lal | J146: Working In the Capacity Of
A147: =A64 -> Principal | D147: (Designation) do hereby certify that the information given above is true correct based on the
A148: book of accounts, documents and TDS Statements, TDS Deposited and other available records.
F153: Signature & Seal
A155: Place: | F155: Full Name | H155: =A7 -> Rajendra Kumar Chittora
A156: Date: | F156: Designation | H156: =A8 -> Principal

Sheet Hra Receipt
A1: RECEIPT OF HOUSE RENT | F1: RAJTEACHERS.NET
A2: Under Section 1 (13 – A) of Income Tax Act | J2: ='GA-55'!AF4 -> 1
F3: HRA REBATE CALCULATION | J3: ='GA-55'!D6 -> Parmanand Meghwal
A4: =CONCATENATE(J4," ",R4," ",I5," ",K4," ",R4," ",J7,") ",M4," ",R4," ",J6," ",N4," ",N5," ",O4," ",O5," ",P4," ",J3," ",Q4,) ->  | F4: मकान किराया छूट के रशीद की आवश्यकता (12 माह के लिए) | G4: एक माह का किराया (रशीद की राशि इस राशि से कम नहीं हो सकती) | H4: आप द्वारा चुकाया गया एक माह का किराया यहाँ भरें | I4: आप द्वारा चुकाया गया 12 माह का किराया | J4: Received a sum of Rs. | K4: (Rupees | L4: only) | M4: towards House Rent @ Rs. (Rupees | N4: per month from | O4: to | P4: from Dr/Sri/Smt | Q4: in respect of House No - | R4: -
A5: Situated at | F5: =L5 -> 126989.3 | G5: =M5 -> 10582 | H5: =G5 -> 10582 | I5: =H5*12 -> 126984 | J5: ='Tax Old Regime'!Q5 -> 52740.00 | K5: ='GA-55'!N31-'GA-55'!I31 -> 742493 | L5: =IF(J5>=1,(K5*10%+J5),J5) -> 126989.3 | M5: =ROUND(L5/12,0) -> 10582 | N5: Feb | O5: March
A6: …………………………………………………………………. | J6: =SpellNumber(H5) -> 
A7: …………………………………………………………………. | F7: CREATED BY | J7: =SpellNumber(I5) -> 
A8: …………………………………………………………………. | F8: PARMANAND MEGHWAL, SENIOR TEACHER
C9: (Affix Revenue Stamp of Rs.1/-) | F9: GUPS KANWARPURA, ATRU- BARAN
C10: Signature of the House Owner | F10: साथियों नमस्कार! यह शीट वित्तीय वर्ष 2023-24 के आयकर गणना हेतु बनाई गयी है, इसके द्वारा आप एक से अधिक कार्मिकों का आयकर गणना कर सकते हैं, शीट को सावधानीपूर्वक व आयकर विभाग के नियमों के अनुरूप बनाया गया है, किसी प्रकार की गलती के लिए आपके विचार अपेक्षित हैं।
A11: Date:
A12: Name | B12: =VLOOKUP(J2,'Master Sheet'!A6:BN35,65,0) -> Vikas Sharma
A13: Address:-
A14: =VLOOKUP(J2,'Master Sheet'!A6:BN35,66,0) -> Village Kawai Salpura, The atru Dist. Baran
A17: PAN No.
